[Event "Titled Tuesday Blitz March 08 Late 2022"]
[White "Batsiashvili, Nino"]
[Black "Cupid, Kevin"]
[WhiteFideId "13602993"]
[BlackFideId "7700512"]
[WhiteElo "2192"]
[BlackElo "2096"]
[Result "1-0"]
[Round "03"]
[TimeControl "180+1"]
[Date "2022.03.09"]
[WhiteClock "0:00:18"]
[BlackClock "0:00:08"]

1. d4 {[%clk 0:02:59]}  e5 {[%clk 0:02:53]} 2. dxe5 {[%clk 0:02:59]}  Nc6 {[%clk 0:02:53]} 3. Nf3 {[%clk 0:02:59]}  Nge7 {[%clk 0:02:53]} 4. Bf4 {[%clk 0:02:50]}  Ng6 {[%clk 0:02:53]} 5. Bg3 {[%clk 0:02:49]}  Bc5 {[%clk 0:02:51]} 6. e3 {[%clk 0:02:48]}  Qe7 {[%clk 0:02:51]} 7. Qd5 {[%clk 0:02:47]}  Nb4 {[%clk 0:02:51]} 8. Qb3 {[%clk 0:02:46]}  Nc6 {[%clk 0:02:43]} 9. Bc4 {[%clk 0:02:34]}  O-O {[%clk 0:02:38]} 10. O-O {[%clk 0:02:27]}  Ncxe5 {[%clk 0:02:37]} 11. Nxe5 {[%clk 0:02:26]}  Nxe5 {[%clk 0:02:38]} 12. Be2 {[%clk 0:02:17]}  c6 {[%clk 0:02:28]} 13. c4 {[%clk 0:02:17]}  d6 {[%clk 0:02:02]} 14. Nc3 {[%clk 0:02:13]}  Bb6 {[%clk 0:01:55]} 15. Rad1 {[%clk 0:02:11]}  Bc7 {[%clk 0:01:30]} 16. h3 {[%clk 0:01:53]}  Rb8 {[%clk 0:01:25]} 17. f4 {[%clk 0:01:53]}  Nd7 {[%clk 0:01:19]} 18. e4 {[%clk 0:01:51]}  Nc5 {[%clk 0:01:19]} 19. Qc2 {[%clk 0:01:51]}  f5 {[%clk 0:01:19]} 20. Bf3 {[%clk 0:01:25]}  Qf7 {[%clk 0:01:01]} 21. b4 {[%clk 0:01:16]}  fxe4 {[%clk 0:00:53]} 22. Nxe4 {[%clk 0:01:16]}  Nxe4 {[%clk 0:00:53]} 23. Bxe4 {[%clk 0:01:17]}  g6 {[%clk 0:00:41]} 24. f5 {[%clk 0:01:08]}  Bxf5 {[%clk 0:00:34]} 25. Bxf5 {[%clk 0:01:07]}  gxf5 {[%clk 0:00:33]} 26. Bxd6 {[%clk 0:01:07]}  Bxd6 {[%clk 0:00:32]} 27. Rxd6 {[%clk 0:01:08]}  Qe7 {[%clk 0:00:26]} 28. c5 {[%clk 0:01:06]}  Rbe8 {[%clk 0:00:18]} 29. Rxf5 {[%clk 0:00:59]}  Qe3+ {[%clk 0:00:17]} 30. Kh2 {[%clk 0:00:57]}  Re4 {[%clk 0:00:15]} 31. Rxf8+ {[%clk 0:00:49]}  Kxf8 {[%clk 0:00:15]} 32. Qd1 {[%clk 0:00:38]}  Kg7 {[%clk 0:00:10]} 33. Rd3 {[%clk 0:00:31]}  Qf4+ {[%clk 0:00:10]} 34. Rg3+ {[%clk 0:00:31]}  Kf8 {[%clk 0:00:08]} 35. Qd8+ {[%clk 0:00:29]}  Kf7 {[%clk 0:00:07]} 36. Qd7+ {[%clk 0:00:28]}  Re7 {[%clk 0:00:06]} 37. Qg4 {[%clk 0:00:25]}  Qxg4 {[%clk 0:00:06]} 38. Rxg4 {[%clk 0:00:26]}  Re2 {[%clk 0:00:06]} 39. a4 {[%clk 0:00:26]}  Ra2 {[%clk 0:00:06]} 40. a5 {[%clk 0:00:26]}  Rb2 {[%clk 0:00:06]} 41. h4 {[%clk 0:00:23]}  h5 {[%clk 0:00:06]} 42. Rd4 {[%clk 0:00:22]}  Ke6 {[%clk 0:00:06]} 43. Kh3 {[%clk 0:00:20]}  a6 {[%clk 0:00:06]} 44. g3 {[%clk 0:00:19]}  Rb3 {[%clk 0:00:06]} 45. Rf4 {[%clk 0:00:18]}  Ke5 {[%clk 0:00:06]} 46. Rf8 {[%clk 0:00:17]}  Rxb4 {[%clk 0:00:06]} 47. Rh8 {[%clk 0:00:18]}  Rb5 {[%clk 0:00:04]} 48. Rxh5+ {[%clk 0:00:19]}  Kd4 {[%clk 0:00:05]} 49. Rg5 {[%clk 0:00:18]}  Rxa5 {[%clk 0:00:05]} 50. h5 {[%clk 0:00:19]}  Ra1 {[%clk 0:00:05]} 51. Rg4+ {[%clk 0:00:16]}  Kxc5 {[%clk 0:00:05]} 52. Rh4 {[%clk 0:00:17]}  Re1 {[%clk 0:00:05]} 53. h6 {[%clk 0:00:17]}  Re8 {[%clk 0:00:06]} 54. h7 {[%clk 0:00:17]}  a5 {[%clk 0:00:07]} 55. h8=Q {[%clk 0:00:16]}  Rxh8 {[%clk 0:00:08]} 56. Rxh8 {[%clk 0:00:17]}  b5 {[%clk 0:00:09]} 57. g4 {[%clk 0:00:18]}  a4 {[%clk 0:00:10]} 58. g5 {[%clk 0:00:18]}  a3 {[%clk 0:00:10]} 59. Ra8 {[%clk 0:00:18]}  b4 {[%clk 0:00:11]} 60. g6 {[%clk 0:00:18]}  Kc4 {[%clk 0:00:09]} 61. g7 {[%clk 0:00:18]}  Kc3 {[%clk 0:00:08]} 62. g8=Q {[%clk 0:00:18]} 1-0


[Site "https://www.chess.com"]

[Event "Titled Tuesday Blitz March 08 Late 2022"]
[White "Bellahcene, Bilel"]
[Black "Bluebaum, Matthias"]
[WhiteFideId "696358"]
[BlackFideId "24651516"]
[WhiteElo "2501"]
[BlackElo "2847"]
[Result "1-0"]
[Round "03"]
[TimeControl "180+1"]
[Date "2022.03.09"]
[WhiteClock "0:00:11"]
[BlackClock "0:00:15"]

1. d4 {[%clk 0:03:00]}  Nf6 {[%clk 0:02:59]} 2. c4 {[%clk 0:03:00]}  e6 {[%clk 0:02:59]} 3. Nf3 {[%clk 0:03:00]}  d5 {[%clk 0:02:59]} 4. Nc3 {[%clk 0:03:00]}  Bb4 {[%clk 0:03:00]} 5. e3 {[%clk 0:02:52]}  O-O {[%clk 0:02:59]} 6. Bd3 {[%clk 0:02:50]}  b6 {[%clk 0:03:00]} 7. O-O {[%clk 0:02:48]}  Ba6 {[%clk 0:03:00]} 8. Qe2 {[%clk 0:02:40]}  c5 {[%clk 0:02:53]} 9. a3 {[%clk 0:02:30]}  Bxc3 {[%clk 0:02:52]} 10. bxc3 {[%clk 0:02:31]}  Nc6 {[%clk 0:02:35]} 11. Rd1 {[%clk 0:02:23]}  Na5 {[%clk 0:02:19]} 12. cxd5 {[%clk 0:02:20]}  Bxd3 {[%clk 0:02:20]} 13. Qxd3 {[%clk 0:02:19]}  Qxd5 {[%clk 0:02:16]} 14. Nd2 {[%clk 0:02:00]}  Rfd8 {[%clk 0:02:02]} 15. Rb1 {[%clk 0:01:41]}  Rac8 {[%clk 0:01:58]} 16. Bb2 {[%clk 0:01:33]}  h6 {[%clk 0:01:38]} 17. e4 {[%clk 0:01:29]}  Qh5 {[%clk 0:01:38]} 18. h3 {[%clk 0:01:28]}  Qg6 {[%clk 0:01:32]} 19. Re1 {[%clk 0:01:22]}  Nh5 {[%clk 0:01:24]} 20. Qf3 {[%clk 0:01:12]}  cxd4 {[%clk 0:01:23]} 21. cxd4 {[%clk 0:01:12]}  Rc2 {[%clk 0:01:24]} 22. Nf1 {[%clk 0:01:09]}  Nc4 {[%clk 0:01:24]} 23. Ba1 {[%clk 0:01:06]}  Rc8 {[%clk 0:01:06]} 24. d5 {[%clk 0:00:55]}  e5 {[%clk 0:01:05]} 25. Ne3 {[%clk 0:00:54]}  Nxe3 {[%clk 0:01:04]} 26. Rxe3 {[%clk 0:00:52]}  f6 {[%clk 0:00:58]} 27. Bc3 {[%clk 0:00:42]}  Nf4 {[%clk 0:00:57]} 28. Bb4 {[%clk 0:00:34]}  h5 {[%clk 0:00:41]} 29. Rbb3 {[%clk 0:00:27]}  h4 {[%clk 0:00:40]} 30. Rbc3 {[%clk 0:00:23]}  Kh7 {[%clk 0:00:37]} 31. Rxc8 {[%clk 0:00:21]}  Rxc8 {[%clk 0:00:37]} 32. Rc3 {[%clk 0:00:22]}  Rxc3 {[%clk 0:00:38]} 33. Bxc3 {[%clk 0:00:22]}  Qh5 {[%clk 0:00:27]} 34. Qxh5+ {[%clk 0:00:21]}  Nxh5 {[%clk 0:00:28]} 35. d6 {[%clk 0:00:21]}  Nf4 {[%clk 0:00:28]} 36. d7 {[%clk 0:00:20]}  Ne6 {[%clk 0:00:28]} 37. Bb4 {[%clk 0:00:19]}  a5 {[%clk 0:00:12]} 38. Be7 {[%clk 0:00:18]}  b5 {[%clk 0:00:13]} 39. d8=Q {[%clk 0:00:17]}  Nxd8 {[%clk 0:00:13]} 40. Bxd8 {[%clk 0:00:18]}  b4 {[%clk 0:00:13]} 41. axb4 {[%clk 0:00:16]}  axb4 {[%clk 0:00:14]} 42. Be7 {[%clk 0:00:16]}  b3 {[%clk 0:00:15]} 43. Ba3 {[%clk 0:00:16]}  Kg6 {[%clk 0:00:15]} 44. Kf1 {[%clk 0:00:16]}  Kg5 {[%clk 0:00:15]} 45. Bc1+ {[%clk 0:00:14]}  Kg6 {[%clk 0:00:14]} 46. Ke2 {[%clk 0:00:14]}  f5 {[%clk 0:00:15]} 47. Kd3 {[%clk 0:00:14]}  Kf6 {[%clk 0:00:15]} 48. Kc4 {[%clk 0:00:11]}  g5 {[%clk 0:00:15]} 49. Kxb3 {[%clk 0:00:11]}  g4 {[%clk 0:00:14]} 50. Kc4 {[%clk 0:00:10]}  f4 {[%clk 0:00:13]} 51. f3 {[%clk 0:00:09]}  g3 {[%clk 0:00:12]} 52. Kd5 {[%clk 0:00:09]}  Kg5 {[%clk 0:00:13]} 53. Bb2 {[%clk 0:00:09]}  Kh5 {[%clk 0:00:13]} 54. Bxe5 {[%clk 0:00:10]}  Kg6 {[%clk 0:00:14]} 55. Bxf4 {[%clk 0:00:11]}  Kh5 {[%clk 0:00:15]} 1-0


[Site "https://www.chess.com"]

[Event "Titled Tuesday Blitz March 08 Late 2022"]
[White "Bibasa, Bob"]
[Black "Winkels, Marcel"]
[WhiteFideId "10000240"]
[BlackFideId "1003887"]
[WhiteElo "2056"]
[BlackElo "1900"]
[Result "1-0"]
[Round "03"]
[TimeControl "180+1"]
[Date "2022.03.09"]
[WhiteClock "0:01:12"]
[BlackClock "0:00:39"]

1. e4 {[%clk 0:03:00]}  c5 {[%clk 0:02:58]} 2. Nf3 {[%clk 0:03:00]}  d6 {[%clk 0:02:58]} 3. d4 {[%clk 0:03:01]}  cxd4 {[%clk 0:02:59]} 4. Nxd4 {[%clk 0:03:01]}  Nf6 {[%clk 0:02:58]} 5. f3 {[%clk 0:03:02]}  a6 {[%clk 0:02:58]} 6. c4 {[%clk 0:03:02]}  e6 {[%clk 0:02:56]} 7. Be3 {[%clk 0:03:02]}  Be7 {[%clk 0:02:55]} 8. Nc3 {[%clk 0:03:02]}  O-O {[%clk 0:02:55]} 9. Qd2 {[%clk 0:03:03]}  Nc6 {[%clk 0:02:54]} 10. Be2 {[%clk 0:03:03]}  Bd7 {[%clk 0:02:51]} 11. O-O {[%clk 0:03:02]}  Rc8 {[%clk 0:02:49]} 12. Rac1 {[%clk 0:03:02]}  Qc7 {[%clk 0:02:32]} 13. b3 {[%clk 0:03:01]}  Qb8 {[%clk 0:02:32]} 14. g4 {[%clk 0:03:00]}  Nxd4 {[%clk 0:02:21]} 15. Bxd4 {[%clk 0:03:00]}  Bc6 {[%clk 0:02:10]} 16. g5 {[%clk 0:02:58]}  Nd7 {[%clk 0:02:08]} 17. f4 {[%clk 0:02:54]}  Nc5 {[%clk 0:02:01]} 18. Bf3 {[%clk 0:02:52]}  e5 {[%clk 0:01:58]} 19. Be3 {[%clk 0:02:43]}  exf4 {[%clk 0:01:52]} 20. Bxf4 {[%clk 0:02:43]}  Ne6 {[%clk 0:01:51]} 21. Be3 {[%clk 0:02:41]}  Rcd8 {[%clk 0:01:44]} 22. h4 {[%clk 0:02:37]}  b5 {[%clk 0:01:34]} 23. Nd5 {[%clk 0:02:26]}  Bxd5 {[%clk 0:01:28]} 24. cxd5 {[%clk 0:02:24]}  Nc7 {[%clk 0:01:22]} 25. Qc3 {[%clk 0:02:17]}  Rc8 {[%clk 0:01:19]} 26. Bg4 {[%clk 0:02:17]}  Ne6 {[%clk 0:00:54]} 27. Qb2 {[%clk 0:02:03]}  Rxc1 {[%clk 0:00:52]} 28. Rxc1 {[%clk 0:02:03]}  Nc5 {[%clk 0:00:51]} 29. Qd4 {[%clk 0:01:43]}  b4 {[%clk 0:00:45]} 30. h5 {[%clk 0:01:35]}  f6 {[%clk 0:00:44]} 31. g6 {[%clk 0:01:31]}  h6 {[%clk 0:00:43]} 32. Rc4 {[%clk 0:01:25]}  a5 {[%clk 0:00:41]} 33. Qd2 {[%clk 0:01:21]}  Re8 {[%clk 0:00:39]} 34. Bxh6 {[%clk 0:01:13]}  gxh6 {[%clk 0:00:39]} 35. Qxh6 {[%clk 0:01:12]}  Bf8 {[%clk 0:00:39]} 36. Qh7# {[%clk 0:01:12]} 1-0


[Site "https://www.chess.com"]

[Event "Titled Tuesday Blitz March 08 Late 2022"]
[White "Burke, Paul"]
[Black "Myers, Dominique"]
[WhiteFideId "2605767"]
[BlackFideId "2041715"]
[WhiteElo "1874"]
[BlackElo "1986"]
[Result "1-0"]
[Round "03"]
[TimeControl "180+1"]
[Date "2022.03.09"]
[WhiteClock "0:02:45"]
[BlackClock "0:02:12"]

1. e4 {[%clk 0:03:00]}  c5 {[%clk 0:02:53]} 2. d4 {[%clk 0:02:59]}  cxd4 {[%clk 0:02:52]} 3. c3 {[%clk 0:02:59]}  Nf6 {[%clk 0:02:52]} 4. Bd3 {[%clk 0:02:56]}  e6 {[%clk 0:02:48]} 5. Bf4 {[%clk 0:02:55]}  dxc3 {[%clk 0:02:48]} 6. Nxc3 {[%clk 0:02:54]}  Nc6 {[%clk 0:02:48]} 7. Nf3 {[%clk 0:02:54]}  Bb4 {[%clk 0:02:47]} 8. Qe2 {[%clk 0:02:54]}  O-O {[%clk 0:02:47]} 9. e5 {[%clk 0:02:53]}  Nd5 {[%clk 0:02:46]} 10. Bd2 {[%clk 0:02:53]}  Nxc3 {[%clk 0:02:45]} 11. bxc3 {[%clk 0:02:52]}  Ba5 {[%clk 0:02:45]} 12. Bxh7+ {[%clk 0:02:50]}  Kxh7 {[%clk 0:02:45]} 13. Ng5+ {[%clk 0:02:50]}  Kg6 {[%clk 0:02:45]} 14. h4 {[%clk 0:02:50]}  Bxc3 {[%clk 0:02:16]} 15. h5+ {[%clk 0:02:47]}  Kf5 {[%clk 0:02:12]} 16. Qe4# {[%clk 0:02:45]} 1-0


[Site "https://www.chess.com"]

[Event "Titled Tuesday Blitz March 08 Late 2022"]
[White "Cardoso Cardoso, Jose Gabriel"]
[Black "Nakamura, Hikaru"]
[WhiteFideId "4430492"]
[BlackFideId "2016192"]
[WhiteElo "2451"]
[BlackElo "2850"]
[Result "1-0"]
[Round "03"]
[TimeControl "180+1"]
[Date "2022.03.08"]
[WhiteClock "0:00:55"]
[BlackClock "0:00:57"]

1. d4 {[%clk 0:02:53]}  g6 {[%clk 0:02:58]} 2. e4 {[%clk 0:02:52]}  Bg7 {[%clk 0:02:58]} 3. Bc4 {[%clk 0:02:52]}  a6 {[%clk 0:02:58]} 4. a4 {[%clk 0:02:51]}  b6 {[%clk 0:02:57]} 5. Nf3 {[%clk 0:02:50]}  Bb7 {[%clk 0:02:58]} 6. Qe2 {[%clk 0:02:51]}  e6 {[%clk 0:02:57]} 7. O-O {[%clk 0:02:50]}  d6 {[%clk 0:02:57]} 8. c3 {[%clk 0:02:51]}  Nd7 {[%clk 0:02:57]} 9. h4 {[%clk 0:02:48]}  h6 {[%clk 0:02:57]} 10. Nbd2 {[%clk 0:02:47]}  g5 {[%clk 0:02:56]} 11. h5 {[%clk 0:02:34]}  Ngf6 {[%clk 0:02:52]} 12. Nh2 {[%clk 0:02:33]}  d5 {[%clk 0:02:45]} 13. Bd3 {[%clk 0:02:29]}  dxe4 {[%clk 0:02:43]} 14. Nxe4 {[%clk 0:02:30]}  Nd5 {[%clk 0:02:40]} 15. f4 {[%clk 0:02:22]}  gxf4 {[%clk 0:02:34]} 16. Bxf4 {[%clk 0:02:19]}  Nxf4 {[%clk 0:02:33]} 17. Rxf4 {[%clk 0:02:20]}  Qe7 {[%clk 0:02:34]} 18. Raf1 {[%clk 0:02:16]}  Rf8 {[%clk 0:02:30]} 19. Ng3 {[%clk 0:02:11]}  Nf6 {[%clk 0:02:04]} 20. Ng4 {[%clk 0:01:44]}  Nd5 {[%clk 0:01:58]} 21. Rxf7 {[%clk 0:01:35]}  Rxf7 {[%clk 0:01:52]} 22. Bg6 {[%clk 0:01:34]}  Nf6 {[%clk 0:01:52]} 23. Ne5 {[%clk 0:01:33]}  O-O-O {[%clk 0:01:52]} 24. Nxf7 {[%clk 0:01:32]}  Re8 {[%clk 0:01:50]} 25. Ne5 {[%clk 0:01:27]}  Rf8 {[%clk 0:01:50]} 26. Bd3 {[%clk 0:01:22]}  Nd5 {[%clk 0:01:50]} 27. Bxa6 {[%clk 0:01:19]}  Rxf1+ {[%clk 0:01:44]} 28. Nxf1 {[%clk 0:01:18]}  Qg5 {[%clk 0:01:23]} 29. Bxb7+ {[%clk 0:01:13]}  Kxb7 {[%clk 0:01:24]} 30. Nd3 {[%clk 0:01:11]}  Qf5 {[%clk 0:01:10]} 31. Qf3 {[%clk 0:01:09]}  Qxf3 {[%clk 0:01:10]} 32. gxf3 {[%clk 0:01:09]}  Bf8 {[%clk 0:01:08]} 33. Ng3 {[%clk 0:01:04]}  c5 {[%clk 0:01:08]} 34. dxc5 {[%clk 0:01:04]}  bxc5 {[%clk 0:01:09]} 35. Ne4 {[%clk 0:01:01]}  Kb6 {[%clk 0:01:03]} 36. Kf2 {[%clk 0:00:59]}  Be7 {[%clk 0:00:58]} 37. Ne5 {[%clk 0:00:58]}  Nf4 {[%clk 0:00:57]} 38. Ng6 {[%clk 0:00:56]}  Nd5 {[%clk 0:00:57]} 39. c4 {[%clk 0:00:55]} 1-0


[Site "https://www.chess.com"]

[Event "Titled Tuesday Blitz March 08 Late 2022"]
[White "Chigaev, Maksim"]
[Black "Senft, Sean"]
[WhiteFideId "4108116"]
[BlackFideId "2044960"]
[WhiteElo "2502"]
[BlackElo "1881"]
[Result "1-0"]
[Round "03"]
[TimeControl "180+1"]
[Date "2022.03.08"]
[WhiteClock "0:00:50"]
[BlackClock "0:00:35"]

1. d4 {[%clk 0:03:00]}  d5 {[%clk 0:02:59]} 2. Nf3 {[%clk 0:02:58]}  c6 {[%clk 0:03:00]} 3. c4 {[%clk 0:02:58]}  Nf6 {[%clk 0:03:00]} 4. g3 {[%clk 0:02:58]}  a6 {[%clk 0:02:58]} 5. Bg2 {[%clk 0:02:57]}  Bf5 {[%clk 0:02:58]} 6. Nc3 {[%clk 0:02:51]}  e6 {[%clk 0:02:59]} 7. Qb3 {[%clk 0:02:51]}  Ra7 {[%clk 0:02:59]} 8. O-O {[%clk 0:02:46]}  Nbd7 {[%clk 0:02:59]} 9. Nd2 {[%clk 0:02:40]}  Be7 {[%clk 0:02:59]} 10. e4 {[%clk 0:02:40]}  dxe4 {[%clk 0:02:59]} 11. Ndxe4 {[%clk 0:02:41]}  O-O {[%clk 0:02:57]} 12. Rd1 {[%clk 0:02:40]}  Qc8 {[%clk 0:02:31]} 13. Bf4 {[%clk 0:02:28]}  Nxe4 {[%clk 0:02:28]} 14. Nxe4 {[%clk 0:02:29]}  Bxe4 {[%clk 0:02:24]} 15. Bxe4 {[%clk 0:02:29]}  Nf6 {[%clk 0:02:23]} 16. Bf3 {[%clk 0:02:30]}  b5 {[%clk 0:02:23]} 17. Rac1 {[%clk 0:02:29]}  b4 {[%clk 0:02:17]} 18. d5 {[%clk 0:02:25]}  c5 {[%clk 0:02:09]} 19. d6 {[%clk 0:02:20]}  Bd8 {[%clk 0:02:09]} 20. a3 {[%clk 0:02:21]}  a5 {[%clk 0:02:09]} 21. axb4 {[%clk 0:02:19]}  axb4 {[%clk 0:02:09]} 22. Ra1 {[%clk 0:02:20]}  Rxa1 {[%clk 0:02:02]} 23. Rxa1 {[%clk 0:02:21]}  Re8 {[%clk 0:01:53]} 24. Ra8 {[%clk 0:02:01]}  Qd7 {[%clk 0:01:52]} 25. Be5 {[%clk 0:02:01]}  h5 {[%clk 0:01:31]} 26. Qa2 {[%clk 0:01:53]}  Ng4 {[%clk 0:01:30]} 27. Ra7 {[%clk 0:01:46]}  Qxa7 {[%clk 0:01:05]} 28. Qxa7 {[%clk 0:01:43]}  Nxe5 {[%clk 0:01:06]} 29. Bxh5 {[%clk 0:01:30]}  Bf6 {[%clk 0:01:01]} 30. f4 {[%clk 0:01:21]}  Ng6 {[%clk 0:00:59]} 31. Bxg6 {[%clk 0:01:14]}  Bd4+ {[%clk 0:00:59]} 32. Kg2 {[%clk 0:01:13]}  fxg6 {[%clk 0:01:00]} 33. Qd7 {[%clk 0:01:07]}  Kf8 {[%clk 0:00:59]} 34. b3 {[%clk 0:01:07]}  Bf6 {[%clk 0:00:55]} 35. g4 {[%clk 0:01:04]}  g5 {[%clk 0:00:54]} 36. h4 {[%clk 0:00:57]}  gxf4 {[%clk 0:00:43]} 37. g5 {[%clk 0:00:56]}  Bd8 {[%clk 0:00:40]} 38. g6 {[%clk 0:00:56]}  Be7 {[%clk 0:00:35]} 39. Qxe6 {[%clk 0:00:50]} 1-0


[Site "https://www.chess.com"]

[Event "Titled Tuesday Blitz March 08 Late 2022"]
[White "Dilmukhametov, Artur"]
[Black "Kopczynski, Michal"]
[WhiteFideId "24179922"]
[BlackFideId "1124200"]
[WhiteElo "2237"]
[BlackElo "2235"]
[Result "1-0"]
[Round "03"]
[TimeControl "180+1"]
[Date "2022.03.09"]
[WhiteClock "0:00:07"]
[BlackClock "0:00:03"]

1. e4 {[%clk 0:03:00]}  c5 {[%clk 0:02:59]} 2. Nf3 {[%clk 0:03:00]}  d6 {[%clk 0:03:00]} 3. Bb5+ {[%clk 0:03:00]}  Nc6 {[%clk 0:02:59]} 4. O-O {[%clk 0:02:59]}  g6 {[%clk 0:02:59]} 5. d4 {[%clk 0:02:59]}  cxd4 {[%clk 0:02:58]} 6. Nxd4 {[%clk 0:03:00]}  Bd7 {[%clk 0:02:58]} 7. Nc3 {[%clk 0:02:59]}  Bg7 {[%clk 0:02:56]} 8. Be3 {[%clk 0:02:59]}  Nf6 {[%clk 0:02:55]} 9. h3 {[%clk 0:02:56]}  O-O {[%clk 0:02:54]} 10. Qd2 {[%clk 0:02:47]}  Nxd4 {[%clk 0:02:48]} 11. Qxd4 {[%clk 0:02:45]}  Bxb5 {[%clk 0:02:24]} 12. Nxb5 {[%clk 0:02:44]}  Ng4 {[%clk 0:02:23]} 13. Qd3 {[%clk 0:02:23]}  Nxe3 {[%clk 0:02:21]} 14. Qxe3 {[%clk 0:02:23]}  Bxb2 {[%clk 0:02:20]} 15. Rab1 {[%clk 0:02:24]}  Bg7 {[%clk 0:02:17]} 16. Nxa7 {[%clk 0:02:24]}  b6 {[%clk 0:01:39]} 17. Nc6 {[%clk 0:02:21]}  Qc7 {[%clk 0:01:38]} 18. Qxb6 {[%clk 0:02:20]}  Qd7 {[%clk 0:01:31]} 19. Qb7 {[%clk 0:02:20]}  Qxb7 {[%clk 0:01:24]} 20. Rxb7 {[%clk 0:02:21]}  e6 {[%clk 0:01:22]} 21. Na7 {[%clk 0:02:06]}  Bd4 {[%clk 0:01:13]} 22. Nb5 {[%clk 0:02:05]}  Bc5 {[%clk 0:01:10]} 23. Ra1 {[%clk 0:02:05]}  Rfc8 {[%clk 0:01:06]} 24. a4 {[%clk 0:02:02]}  Bb4 {[%clk 0:01:00]} 25. Nc7 {[%clk 0:01:49]}  Ra5 {[%clk 0:00:58]} 26. Rxb4 {[%clk 0:00:59]}  Rxc7 {[%clk 0:00:58]} 27. c4 {[%clk 0:01:00]}  Rca7 {[%clk 0:00:55]} 28. Kf1 {[%clk 0:01:00]}  Kf8 {[%clk 0:00:53]} 29. Ke2 {[%clk 0:01:00]}  Ke7 {[%clk 0:00:53]} 30. Kd3 {[%clk 0:01:00]}  Kd7 {[%clk 0:00:51]} 31. Kc3 {[%clk 0:01:01]}  Kc6 {[%clk 0:00:51]} 32. Kb3 {[%clk 0:00:58]}  Rg5 {[%clk 0:00:25]} 33. g3 {[%clk 0:00:58]}  Re5 {[%clk 0:00:25]} 34. f3 {[%clk 0:00:56]}  Rg5 {[%clk 0:00:24]} 35. g4 {[%clk 0:00:56]}  h5 {[%clk 0:00:23]} 36. Rb5 {[%clk 0:00:55]}  Rc5 {[%clk 0:00:20]} 37. Rxc5+ {[%clk 0:00:51]}  Kxc5 {[%clk 0:00:18]} 38. a5 {[%clk 0:00:52]}  Rb7+ {[%clk 0:00:17]} 39. Kc3 {[%clk 0:00:52]}  hxg4 {[%clk 0:00:15]} 40. hxg4 {[%clk 0:00:51]}  f5 {[%clk 0:00:12]} 41. gxf5 {[%clk 0:00:47]}  gxf5 {[%clk 0:00:12]} 42. exf5 {[%clk 0:00:47]}  exf5 {[%clk 0:00:13]} 43. a6 {[%clk 0:00:47]}  Ra7 {[%clk 0:00:12]} 44. Ra5+ {[%clk 0:00:45]}  Kb6 {[%clk 0:00:12]} 45. Rd5 {[%clk 0:00:20]}  Kc6 {[%clk 0:00:12]} 46. Ra5 {[%clk 0:00:19]}  Kb6 {[%clk 0:00:12]} 47. Rxf5 {[%clk 0:00:20]}  Rxa6 {[%clk 0:00:12]} 48. Kd4 {[%clk 0:00:18]}  Kc6 {[%clk 0:00:12]} 49. Rf8 {[%clk 0:00:17]}  Kd7 {[%clk 0:00:12]} 50. Kd5 {[%clk 0:00:14]}  Ra5+ {[%clk 0:00:12]} 51. Kd4 {[%clk 0:00:14]}  Ke7 {[%clk 0:00:11]} 52. Rh8 {[%clk 0:00:13]}  Ra3 {[%clk 0:00:07]} 53. Rh7+ {[%clk 0:00:11]}  Ke6 {[%clk 0:00:07]} 54. Rh6+ {[%clk 0:00:11]}  Ke7 {[%clk 0:00:08]} 55. f4 {[%clk 0:00:11]}  Rf3 {[%clk 0:00:07]} 56. Ke4 {[%clk 0:00:11]}  Rf1 {[%clk 0:00:06]} 57. f5 {[%clk 0:00:10]}  Re1+ {[%clk 0:00:07]} 58. Kd4 {[%clk 0:00:10]}  Rd1+ {[%clk 0:00:07]} 59. Kc3 {[%clk 0:00:08]}  Rf1 {[%clk 0:00:06]} 60. Rh5 {[%clk 0:00:04]}  Kf6 {[%clk 0:00:06]} 61. Kd4 {[%clk 0:00:04]}  Rd1+ {[%clk 0:00:05]} 62. Ke4 {[%clk 0:00:04]}  Re1+ {[%clk 0:00:06]} 63. Kd5 {[%clk 0:00:05]}  Rd1+ {[%clk 0:00:06]} 64. Kc6 {[%clk 0:00:05]}  Rc1 {[%clk 0:00:06]} 65. Rh4 {[%clk 0:00:03]}  Kxf5 {[%clk 0:00:06]} 66. Kxd6 {[%clk 0:00:03]}  Rd1+ {[%clk 0:00:04]} 67. Kc6 {[%clk 0:00:02]}  Rc1 {[%clk 0:00:05]} 68. c5 {[%clk 0:00:03]}  Ke6 {[%clk 0:00:05]} 69. Rd4 {[%clk 0:00:03]}  Ke5 {[%clk 0:00:05]} 70. Rd2 {[%clk 0:00:03]}  Ke6 {[%clk 0:00:04]} 71. Kb6 {[%clk 0:00:04]}  Rb1+ {[%clk 0:00:04]} 72. Kc7 {[%clk 0:00:04]}  Rc1 {[%clk 0:00:04]} 73. c6 {[%clk 0:00:04]}  Ke7 {[%clk 0:00:04]} 74. Re2+ {[%clk 0:00:04]}  Kf6 {[%clk 0:00:04]} 75. Kb7 {[%clk 0:00:05]}  Rb1+ {[%clk 0:00:05]} 76. Kc8 {[%clk 0:00:05]}  Rc1 {[%clk 0:00:05]} 77. c7 {[%clk 0:00:06]}  Kf5 {[%clk 0:00:05]} 78. Re7 {[%clk 0:00:04]}  Kf6 {[%clk 0:00:05]} 79. Kd8 {[%clk 0:00:04]}  Rd1+ {[%clk 0:00:04]} 80. Rd7 {[%clk 0:00:05]}  Rh1 {[%clk 0:00:02]} 81. c8=Q {[%clk 0:00:05]}  Rh8+ {[%clk 0:00:03]} 82. Kc7 {[%clk 0:00:06]}  Rxc8+ {[%clk 0:00:03]} 83. Kxc8 {[%clk 0:00:07]} 1-0


[Site "https://www.chess.com"]